Cogmind - Beta 16 *** ADVENTURER MODE // 2025.11.12 @ 08:09:59 Player: CaptainWalker Result: Destroyed by G-34 Mercenary with Small Laser Performance ------------- Evolutions (1) 500 Regions Visited (2) 400 Robots Destroyed (17) 85 Value Destroyed (456) 456 Prototype IDs (1) 20 Alien Tech Used (0) 0 Bonus (0) 0 TOTAL SCORE: 1461 Bonus ------- None Cogmind --------- Core Integrity 0/400 Matter 300/300 Energy 100/100 System Corruption 7% Temperature Cool (6) Movement Core (350) Ox6 Location -9/Materials Parts ------- > --- POWER (2) -------- (None) > --- PROPULSION (2) --- (None) > --- UTILITY (3) ------ Large Storage Unit > --- WEAPON (2) ------- (None) > --- INVENTORY (15) --- (None) Peak State ------------ > --- POWER ------------ Improved Ion Engine Improved Ion Engine > --- PROPULSION ------- Aluminum Leg Aluminum Leg > --- UTILITY ---------- Heat Sink Large Storage Unit Core Shielding > --- WEAPON ----------- EM Pulse Gun Medium Laser > --- INVENTORY -------- Light Treads Light Treads [Rating: 11] Favorites ----------- Power Improved Ion Engine Engine Improved Ion Engine Propulsion Aluminum Leg Treads Light Treads Leg Aluminum Leg Utility Heat Sink Device Heat Sink Storage Large Storage Unit Protection Core Shielding Weapon EM Pulse Gun Energy Gun EM Pulse Gun Energy Cannon Light EM Pulse Cannon Build | -11 -10 -9 ------- Run | Yrd Mat Mat Slots Evolved 2 | . . 2 Power 1 | . . 1 Propulsion . | . . . Utility 1 | . . 1 Weapon . | . . . Parts Attached 15 | 6 4 5 Power 3 | 1 1 1 Engine 3 | 1 1 1 Core . | . . . Reactor . | . . . Propulsion 4 | 2 . 2 Treads 2 | . . 2 Leg 2 | 2 . . Wheel . | . . . Hover . | . . . Flight . | . . . Utility 4 | 1 2 1 Device 1 | . 1 . Storage 2 | 1 1 . Processor . | . . . Hackware . | . . . Protection 1 | . . 1 Artifact . | . . . Weapon 4 | 2 1 1 Energy Gun 3 | 2 1 . Energy Cannon 1 | . . 1 Ballistic Gun . | . . . Ballistic Cannon . | . . . Launcher . | . . . Special Weapon . | . . . Impact Weapon . | . . . Slashing Weapon . | . . . Piercing Weapon . | . . . Special Melee Weapon . | . . . Unidentified Prototypes 1 | . . 1 Parts Lost 11 | . . 11 Power 2 | . . 2 Propulsion 3 | . . 3 Utility 2 | . . 2 Weapon 4 | . . 4 Highest Loss Streak 8 | . . 8 To Critical Strikes . | . . . Average Backups 3 | 4 4 1 Power . | . . . Propulsion 2 | 3 2 1 Utility . | . . . Weapon . | . 1 . Tool/Special . | . . . Unused Backups 5 | 1 4 . Power 1 | 1 . . Propulsion 2 | . 2 . Utility . | . . . Weapon 2 | . 2 . Tool/Special . | . . . Average Slot Usage (%) 91 | . 98 78 Engine 13 | . 13 12 Treads 1 | . . 5 Leg 23 | . 28 12 Device 11 | . 12 10 Storage 13 | . 14 11 Protection 2 | . . 8 Energy Gun 24 | . 28 17 Peak Build Rating 11 | 6 8 11 Average Rating 7 | 4 7 8 On Entrance 4 | . 6 8 Avg Prop Armor Cover (%) . | . . . Naked Turns . | . . . Heaviest Build 40 | 13 32 40 Greatest Support 40 | 20 20 40 Greatest Overweight (x) 3 | 3 1 3 Average Overweight (x) . | . . . Largest Inventory Capacity 15 | 8 15 15 Average Capacity 12 | 7 12 15 Most Carried 8 | 8 8 3 Average Carried 3 | 4 4 1 Final Capacity 15 | 8 15 15 Final Carried 5 | 5 3 . Class Distribution -------------------- 100% | Mutant Dominant Class ---------------- Mutant | -10/Materials Mutant | -9/Materials Resources | -11 -10 -9 ----------- Run | Yrd Mat Mat Matter Collected 387 | 172 155 60 Remotely . | . . . Salvage Created 598 | . 313 285 Parts 32 | . 21 11 Haulers Intercepted . | . . . Recyclers Shooed . | . . . Parts Field Recycled . | . . . Retrieved Matter . | . . . Parts Self-Destructed . | . . . Prevented . | . . . Parts Restored . | . . . Kills | -11 -10 -9 ------- Run | Yrd Mat Mat Combat Hostiles Destroyed 15 | . 9 6 Guns 15 | . 9 6 Classes Destroyed 4 | . 3 1 Watcher 2 | . 2 . Swarmer 5 | . 5 . Grunt 9 | . 4 5 Sentry 1 | . . 1 Best Kill Streak 3 | . 3 2 Combat Bots Only 3 | . 3 2 Max Kills in Single Turn 1 | . 1 1 Gunslinging . | . . . Exploded . | . . . Melee . | . . . Uniques/NPCs Destroyed . | . . . Combat | -11 -10 -9 -------- Run | Yrd Mat Mat Hostile Shots Fired 190 | . 40 150 Missed 49 | . 11 38 Hits 141 | . 29 112 Melee 4 | . . 4 Projectile 137 | . 29 108 AOE 1 | . . 1 Critical Strikes 3 | . . 3 Actively Blocked 1 | . . 1 Damage Taken 1363 | . 188 1175 Core 435 | . 29 406 Absorbed by Shields . | . . . Redirected to Shielding 25 | . . 25 Ignored by Resistances 413 | . 63 350 Core Remaining (%) 94 | 100 88 . Volleys Fired 56 | . 28 28 Largest 2 | . 2 2 Hottest 106 | . 90 106 Shots Fired 103 | . 57 46 Gun 100 | . 57 43 Cannon 3 | . . 3 Launcher . | . . . Special . | . . . Kinetic . | . . . Thermal 54 | . 28 26 Explosive . | . . . Electromagnetic 49 | . 29 20 Robot Hit Streak 14 | . 12 14 Robot Miss Streak 3 | . 2 3 Penetration Max . | . . . Secondary Targets . | . . . Shots Hit Robots 74 | . 37 37 Core Hits 33 | . 17 16 Critical Kills . | . . . Critical Parts Destroyed . | . . . Critical Strikes 4 | . 2 2 Burn 2 | . . 2 Corrupt 2 | . 2 . Melee Attacks . | . . . Impact . | . . . Slashing . | . . . Piercing . | . . . Sneak Attacks . | . . . Combat Hostiles . | . . . Follow-up Attacks . | . . . Damage Inflicted 1007 | . 464 543 Guns 898 | . 464 434 Cannons 57 | . . 57 Explosions 52 | . . 52 Melee . | . . . Ramming . | . . . Kinetic . | . . . Thermal 496 | . 192 304 Explosive . | . . . Electromagnetic 511 | . 272 239 Impact . | . . . Slashing . | . . . Piercing . | . . . Highest Corruption 7 | . 2 7 Average Corruption 2 | . 1 7 Corruption Purged . | . . . Corruption Blocked . | . . . Effects 13 | . 10 3 Message Errors 3 | . 2 1 Matter Fused 3 | . 3 . Heat Flow Errors 1 | . 1 . Energy Discharges 2 | . 2 . Data Loss (minor) 2 | . 1 1 Data Loss (major) 1 | . . 1 Misfires 1 | . 1 . Overload Shots . | . . . Overflow Damage . | . . . Projectiles . | . . . Explosions . | . . . Melee . | . . . Knockbacks . | . . . Impact . | . . . Kinetic . | . . . Secondary . | . . . Self-Inflicted Damage . | . . . Shots . | . . . Rammed . | . . . Targets Rammed . | . . . Kicked . | . . . Crushed . | . . . Highest Temperature 244 | . 244 62 Average Temperature 37 | . 46 28 Received Heat Transfer 849 | . 60 789 Siege Activations . | . . . Martial Activations . | . . . Shielding Activations . | . . . Robots Disrupted . | . . . Combat Hostiles . | . . . Robots Corrupted . | . . . Combat Hostiles . | . . . Parts Fried 1 | . . 1 Impact Corruptions . | . . . Robots Melted . | . . . Combat Hostiles . | . . . Parts Melted . | . . . Heat Transferred 1399 | . 461 938 Parts Sabotaged . | . . . Parts Stolen . | . . . Parts Stripped . | . . . Power Chain Reactions 1 | . . 1 Alert | -11 -10 -9 ------- Run | Yrd Mat Mat Maximum Alert Level . | . . . Low Security (%) 100 | 100 100 100 Level 1 . | . . . Level 2 . | . . . Level 3 . | . . . Level 4 . | . . . Level 5 . | . . . High Security . | . . . Max Security . | . . . Peak Influence 94 | . 86 94 Initial . | . . . Average 24 | . 27 24 Influence Increases 460 | . 306 154 Destroy 0b10 Robot/C 300 | . 180 120 Destroy 0b10 Robot/NC 10 | . 10 . Destroy Leader 84 | . 54 30 Successful Hack 23 | . 23 . Disable Machine 9 | . 9 . Destroy Structure 4 | . . 4 Lose Combat Pursuer 30 | . 30 . Influence Decreases 460 | . 306 154 Time Decay 396 | . 306 90 Lost Part 64 | . . 64 Squads Dispatched 4 | . 3 1 Investigation 3 | . 3 . Extermination . | . . . Reinforcement 1 | . . 1 Assault . | . . . Garrison . | . . . Intercept . | . . . Searches Triggered . | . . . Construction Impeded . | . . . Haulers Reinforced . | . . . Active Scanning Responses . | . . . Cargo Convoy Interrupts . | . . . Stealth | -11 -10 -9 --------- Run | Yrd Mat Mat Distress Signals 1 | . . 1 Communications Jammed . | . . . Distress Signals . | . . . Times Spotted 28 | . 15 13 Peak Tracking Total 7 | . 3 7 Tactical Retreats 2 | . 2 . Traps | -11 -10 -9 ------- Run | Yrd Mat Mat Traps Triggered 4 | . 3 1 Indirectly . | . . . Trap Hack Attempts . | . . . Triggered . | . . . Disarmed . | . . . Reprogrammed . | . . . Reused . | . . . Traps Extracted . | . . . Installed . | . . . Triggered . | . . . Machines | -11 -10 -9 ---------- Run | Yrd Mat Mat Machines Disabled 1 | . 1 . Max in Single Turn 1 | . 1 . Machines Repaired . | . . . Machines Dismantled . | . . . Machines Sabotaged . | . . . Overloaded Fab Kills . | . . . Hacking | -11 -10 -9 --------- Run | Yrd Mat Mat Machines Accessed 5 | . 4 1 Terminals 4 | . 4 . Fabricators . | . . . Repair Stations . | . . . Recycling Units 1 | . . 1 Scanalyzers . | . . . Garrison Access . | . . . Total Hacks 17 | . 16 1 Successful 9 | . 8 1 Failed 8 | . 8 . Catastrophic . | . . . Database Lockouts . | . . . Manual . | . . . Terminals 16 | . 16 . Fabricators . | . . . Repair Stations . | . . . Recycling Units 1 | . . 1 Scanalyzers . | . . . Garrison Access . | . . . Terminal Hacks 8 | . 8 . Record 4 | . 4 . Locate Traps 1 | . 1 . Security Status 1 | . 1 . Registered Components 1 | . 1 . Zone Layout 1 | . 1 . Fabricator Hacks . | . . . Repair Station Hacks . | . . . Recycling Unit Hacks 1 | . . 1 Report Inventory 1 | . . 1 Scanalyzer . | . . . Garrison Access Hacks . | . . . Unauthorized Hacks . | . . . Terminals . | . . . Fabricators . | . . . Repair Stations . | . . . Recycling Units . | . . . Scanalyzers . | . . . Garrison Access . | . . . Data Cores Recovered . | . . . Used . | . . . Hacking Detections 3 | . 3 . Full Trace Events 3 | . 3 . Feedback Events 1 | . 1 . Corruption 1 | . 1 . Feedback Blocked . | . . . Robot Schematics Acquired . | . . . Robots Built . | . . . Authchips . | . . . Time . | . . . Total Robot Build Rating . | . . . Part Schematics Acquired . | . . . Parts Built . | . . . Authchips . | . . . Time . | . . . Total Part Build Rating . | . . . Part Studies Acquired . | . . . Parts Repaired . | . . . Time . | . . . Parts Recycled . | . . . Recycled Matter . | . . . Retrieved Matter . | . . . Retrieved Components . | . . . Parts Scanalyzed . | . . . Part Schematics Acquired . | . . . Parts Damaged . | . . . Bothacking | -11 -10 -9 ------------ Run | Yrd Mat Mat Used RIF Installer . | . . . Robots Hacked . | . . . Non-combat . | . . . Combat . | . . . Robot Hacks Applied . | . . . Relay Couplers Released . | . . . Fabnet Peak Effective % . | . . . Robots Rewired . | . . . Allies Hacked . | . . . Hacks Repelled . | . . . Allies | -11 -10 -9 -------- Run | Yrd Mat Mat Total Allies . | . . . Largest Group . | . . . Highest-Rated Group . | . . . Highest-Rated Ally . | . . . Total Orders . | . . . Ally Attacks . | . . . Total Damage . | . . . Kills . | . . . Allies Corrupted . | . . . Allies Melted . | . . . Intel | -11 -10 -9 ------- Run | Yrd Mat Mat Active Infowar (turns) . | . . . Robot Analysis Total . | . . . Derelict Logs Recovered . | . . . Drone Launches . | . . . Drone Recoveries . | . . . Exploration | -11 -10 -9 ------------- Run | Yrd Mat Mat Turns Passed 1351 | 116 850 385 Spaces Moved 675 | 83 468 124 Core 27 | 27 . . Treads 30 | . . 30 Legs 618 | 56 468 94 Wheels . | . . . Hover . | . . . Flight . | . . . Fastest Speed 50 | 50 120 160 Average Speed 162 | 118 161 194 Slowest Speed 330 | 200 190 330 Overloaded Moves . | . . . Propulsion Burnouts . | . . . Robots Hopped . | . . . Potential Cave-ins . | . . . Cave-ins Triggered . | . . . Exploration Rate (%) 22 | 5 50 13 Regions Visited 2 Branch Regions . Pre-discovered Areas . | . . . Known Exits Taken . | . . . Unknown Exits Taken 2 | 1 1 . Scrap Searched . | . . . Spaces Dug . | . . . Terrain Destroyed 5 | . . 5 Melee . | . . . Projectile . | . . . AOE 5 | . . 5 Terrain Rammed . | . . . Walls Destroyed . | . . . Machines Disabled . | . . . Actions | -11 -10 -9 --------- Run | Yrd Mat Mat Total 838 | 101 513 224 Wait 59 | . . 59 Move 673 | 82 467 124 Hop . | . . . Pick Up 21 | 12 6 3 Fast Attach . | . . . Attach 17 | 6 4 7 Detach 4 | . 2 2 Swap . | . . . Drop 8 | 1 6 1 Fire 56 | . 28 28 Melee . | . . . Ram . | . . . Kick . | . . . Crush . | . . . Escape Stasis . | . . . Rewire . | . . . Trap . | . . . Miscellaneous . | . . . Route ------- -11/Scrapyard -10/Materials (discovered 3 exits: *Mat x2 / [*Min]) -9/Materials History --------- Turn | Location | Event 13 | -11/Scrapyard | Discovered new exit (range 16) 117 | -11/Scrapyard | Entered Materials 304 | -10/Materials | Build established: Mutant 361 | -10/Materials | Discovered new exit (range 11) 683 | -10/Materials | Discovered new exit (range 14) 773 | -10/Materials | Discovered new exit (range 13) 967 | -10/Materials | Entered another Materials area 967 | -9/Materials | Evolved 2 slots: Power x1, Utility x1 1323 | -9/Materials | Core integrity fell below 50% 1343 | -9/Materials | Core integrity fell below 20% 1352 | -9/Materials | Destroyed by G-34 Mercenary with Small Laser Last Messages --------------- 01300_ K-01 Serf collects debris. 01305_ Lgt. EM Pulse Cannon destroyed. 01305_ K-01 Serf collects debris. 01315_ M-13 Machinist repairs G-34 Mercenary. 01316_ E2,/J5DF,SIRZMP 01327_ M-13 Machinist destroyed. 01328_ K-01 Serf collects debris. 01328_ Heat Sink destroyed. 01328_ R-06 Scavenger collects Wheel. 01329_ K-01 Serf collects debris. 01334_ R-06 Scavenger collects Lgt. Ion Engine. 01334_ K-01 Serf collects debris. 01337_ R-06 Scavenger collects Wheel. 01339_ System corrupted: Component data lost. 01339_ K-01 Serf collects debris. Map ----- +----------------------------------------------------+ | ?????????????????????????????????????????????????? | | ?????????????????????????????????????????????????? | | ?????????????????????????????????????????????????? | | ?????????????????????????????????????????????????? | | ?????????????????????????????????????????????????? | | ?????????????????????????????????????????????????? | | ?????????????????????????????????????????????????? | | ?????????????????????????????????????????????????? | | ?????????????????????????????????????????????????? | | ?????????????????????????????????????????????????? | | ??????????????????????? ????????????????????????? | | ?????????????????????? ####????????????????????? | | ?????????????????????? #????????????????????? | | ??????????????????????? +????????????????????? | | ??????????????????????? #? ??????????????????? | | ???????????????????????"" # ???????????????????? | | ??????????????????????### # ???????????????????? | | ?????????????????????## #r # ???????????????????? | | ??????????????????#######%% # ???????????????????? | | ??????????????????+ % ##########???????????? | | ??????????????????# % # #???????????? | | ??????????????????# % # #???????????? | | ??????????????????# g g # = #???????????? | | ??????????????????# % %# #???????????? | | ???????????######## % # #???????????? | | ?????????# @gk/ #???????????? | | ?????????# # #???????????? | | ?????????# # #???????????? | | ?????????# # #???????????? | | ?????????? ############+######+####???????????? | | ????????????????????# % # #??????????????? | | ????????????????????# " """ # #??????????????? | | ????????????????????# "" "" # #??????????????? | | ????????????????????# """"" # #??????????????? | | ????????????????????# = # ####???????????? | | ???????????????????# "Y" # !##??????????? | | ???????????????????## """ # !#??????????? | | ??????????????????############### !#??????????? | | ??????????????????# ####### !#??????????? | | ??????????????????# !#??????????? | | ??????????????????# " !##??????????? | | ??????????????????# ###???????????? | | ??????????????????#! ########/###?????????????? | | ??????????########## ##?????? ??????????????? | | ??????????# # #??????? """ ????????????? | | ??????????# # #?????? "?" #???????????? | | ??????????# # #?????? "?? #???????????? | | ??????????#!!! """ # #????? "???????????????? | | ??????????#!!! """ # #????? "???????????????? | | ??????????#!! """ + #???? ???????????????? | +----------------------------------------------------+ Best States ------------- Heat Dissipation 38 Energy Generation 19 Energy Capacity 430 Matter Stores 300 Matter Capacity 300 Sight Range 16 Terrain Scan Density 10 Resistance: KI 20 Resistance: TH 20 Resistance: EX 20 Resistance: EM 20 Resistance: I 20 Resistance: S 20 Resistance: P 20 Core Shielding 20 Evasion (%) 55 Recoil Reduction 2 Offensive Hacking 10 Item Schematics ----------------- None Robot Schematics ------------------ None Fabricated ------------ Nothing Repaired ---------- Nothing Studied --------- None Alien Tech Used ----------------- None Achievements -------------- Risk Taker That Tickles Challenges ------------ None Game ------ Seed FusionSuperquantumCarapace Manual? 0 Play Time 00:13:52 Cumulative 1.2 hours Start 2025.11.12 @ 07:56:19 End 2025.11.12 @ 08:09:59 Sessions 1 Manual Loads 0 Difficulty Adventurer Special Mode None Game No. 3 Rogue -1 Adventurer 4 Explorer 0 Win Type - Total 0 Types 0/0/0/0/0/0/0/0/0/0 Lore% 0 Gallery% 3 Achievement% 4 Wizard Run 0 Options --------- Layout 1 ASCII 0 Keyboard 0 Movement Arrows Keybinds 0 Fullscreen 2 Font 18/SmallcapsGlow Map View 25x20 Zoom Use 99% Tactical HUD 1 Map Filters NONE Filters NONE Steam X RUN: 8312f057-41ac-4218-928a-a1d5180e286a